Workbook

Sheet CISTERNAS ALAGOAS
B1: MINISTÉRIO DO DESENVOLVIMENTO REGIONAL - MDR
B2: COMPANHIA DE DESENVOLVIMENTO DOS VALES DO SÃO FRANCISCO E DO PARNAÍBA
B3: ÁREA DE REVITALIZAÇÃO DAS BACIAS HIDROGRÁFICAS
G4: BASES DE REFERÊNCIA.: SINAPI / ORSE / DNIT
G5: BASE | I5: SETEMBRO / 2020
A6: OBJETO: | B6: TRANSPORTE E INSTALAÇÃO DE CISTERNAS PARA CAPTAÇÃO DA ÁGUA DA CHUVA - ALAGOAS | G6: BDI SERVIÇOS | I6: ='B.D.I SERVIÇOS (SEM DES.)'!F32/100 -> 0.2545
G7: BDI MATERIAIS | I7: ='B.D.I MATERIAIS (SEM DES.)'!F32/100 -> 0.1089
B8: PLANILHA ORÇAMENTÁRIA | G8: QTD DE CISTERNAS | I8: =J65 -> 1562
A10: ITEM | B10: ESPECIFICAÇÃO DOS SERVIÇOS | C10: CÓDIGO / BASE | D10: UND | E10: QUANTIDADE ESTIMADA / CISTERNA | F10: QUANTIDADE TOTAL | G10: VALOR UNIT. S/BDI (R$) | H10: VALOR UNIT. C/BDI (R$) | I10: VALOR TOTAL (R$) | J10: VALOR (R$) / CISTERNA
A12: 01 | B12: SERVIÇOS | I12: =SUBTOTAL(9,I13:I39) -> 2500929.06 | J12: =I12/$I$8 -> 1601.106953
A14: 01.01 | B14: SERVIÇOS PRELIMINAES E CANTEIRO DE OBRAS | I14: =SUBTOTAL(9,I15:I20) -> 542294.14 | J14: =I14/$I$8 -> 347.179347
A15: 01.01.01 | B15: MOBILIZAÇÃO E DESMOBILIZAÇÃO DE PESSOAL E EQUIPAMENTOS | C15: CPU0001 | D15: UN | F15: 1 | G15: 7387.07 | H15: =ROUND(G15+G15*$I$6,2) -> 9267.08 | I15: =ROUND(ROUND(F15,2)*ROUND(H15,2),2) -> 9267.08
A16: 01.01.02 | B16: INSTALAÇÃO DE CANTEIRO DE OBRAS (LOCAÇÃO DE IMÓVEL) | C16: CPU0002 | D16: UN | F16: 1 | G16: 26550.3 | H16: =ROUND(G16+G16*$I$6,2) -> 33307.35 | I16: =ROUND(ROUND(F16,2)*ROUND(H16,2),2) -> 33307.35
A17: 01.01.03 | B17: ADMINISTRAÇÃO LOCAL E MANUTENÇÃO DO CANTEIRO DE OBRAS | C17: CPU0003 | D17: UN | F17: 1 | G17: 328324.57 | H17: 411883.17 | I17: 411883.17
A18: 01.01.04 | B18: VEÍCULO PICK-UP CABINE DUPLA 4X4 (163 CV), COM AR-CONDICIONADO PARA APOIO À FISCALIZAÇÃO, INCLUINDO DESPESAS COM COMBUSTÍVEL, ÓLEOS, MANUTENÇÃO, LICENCIAMENTO, SEGUROS, IMPOSTOS, ETC. | C18: CPU0004 | D18: MÊS | F18: 7 | G18: 6474.26 | H18: 8121.96 | I18: 56853.72
A19: 01.01.05 | B19: PLACA DE OBRA EM CHAPA DE ACO GALVANIZADO (01 PLACA DE 3,60 X 1,80M POR MUNICÍPIO) | C19: CPU0005 | D19: M2 | F19: 64.8 | G19: 381.13 | H19: 478.13 | I19: 30982.82
A21: 01.02 | B21: INSTALAÇÃO DAS CISTERNAS | I21: =SUBTOTAL(9,I22:I28) -> 883741.18 | J21: =I21/$I$8 -> 565.7754033
A22: 01.02.01 | B22: ESCAVAÇÃO MANUAL - ABERTURA DA CISTERNA - H=80CM | C22: CPU0006 | D22: M3 | E22: 7.7 | F22: 12027.4 | G22: 42.9 | H22: =ROUND(G22+G22*$I$6,2) -> 53.82 | I22: =ROUND(ROUND(F22,2)*ROUND(H22,2),2) -> 647314.67
A23: 01.02.02 | B23: REGULARIZAÇÃO COM SOLO-CIMENTO TRAÇO 1:20, ESP=10CM | C23: CPU0007 | D23: M3 | E23: 0.96 | F23: 1499.52 | G23: 74.15 | H23: 93.02 | I23: 139485.35
A24: 01.02.03 | B24: REATERRO COMPACTADO LATERAL, CONFORME ESPECIFICADO EM PROJETO. | C24: CPU0008 | D24: M3 | E24: 1.1 | F24: 1718.2 | G24: 21.45 | H24: 26.91 | I24: 46236.76
A25: 01.02.04 | B25: ESCAVACAO E CARGA MATERIAL DE JAZIDA 1A CATEGORIA (MATERIAL DE EMPRÉSTIMO) | C25: CPU0009 | D25: M3 | E25: 1.62 | F25: 2530.44 | G25: 2.52 | H25: 3.16 | I25: 7996.19
A26: 01.02.05 | B26: TRANSPORTE LOCAL MATERIAL DE JAZIDA DMT= 10KM - ROD. NÃO PAVIMENTADA (MATERIAL DE EMPRÉSTIMO) | C26: CPU0010 | D26: M3XKM | E26: 16.2 | F26: 25304.4 | G26: 1.21 | H26: 1.52 | I26: 38462.69
A27: 01.02.06 | B27: ESPALHAMENTO DO MATERIAL ESCAVADO NÃO UTILIZADO PARA ATERRO | C27: CPU0011 | D27: M3 | E27: 4.53 | F27: 7075.86 | G27: 0.48 | H27: 0.6 | I27: 4245.52
A29: 01.03 | B29: SERVIÇOS COMPLEMENTARES | I29: =SUBTOTAL(9,I30:I34) -> 1013175.68 | J29: =I29/$I$8 -> 648.64
A30: 01.03.01 | B30: ASSENTAMENTO DE TUBOS E CONEXÕES (INCLUSIVE FILTRO SEPARADOR DE FOLHAS E ABRAÇADEIRAS) | C30: CPU0012 | D30: M | E30: 15 | F30: 23430 | G30: 3.87 | H30: =ROUND(G30+G30*$I$6,2) -> 4.85 | I30: =ROUND(ROUND(F30,2)*ROUND(H30,2),2) -> 113635.5
A31: 01.03.02 | B31: CALHA EM CHAPA DE AÇO GALVANIZADO NÚMERO 26. DESENVOLVIMENTO DE 30 CM. INCLUSO TRANSPORTE VERTICAL. (SINAPI 94227 ADAPTADA) | C31: CPU0013 | D31: M | E31: 16 | F31: 24992 | G31: 25.96 | H31: 32.57 | I31: 813989.44
A32: 01.03.03 | B32: INSTALAÇÃO DA BOMBA MANUAL (INCLUSIVE CONJUNTO DE SUCÇÃO FLUTUANTE COM MANGUEIRA FLEXIVEL) | C32: CPU0014 | D32: UN | E32: 1 | F32: 1562 | G32: 18.81 | H32: 23.6 | I32: 36863.2
A33: 01.03.04 | B33: BLOCO DE ANCORAGEM 25 X 30 X 25CM | C33: CPU0015 | D33: UN | E33: 1 | F33: 1562 | G33: 24.85 | H33: 31.17 | I33: 48687.54
A35: 01.04 | B35: TRANSPORTE DAS CISTERNAS | I35: =SUBTOTAL(9,I36:I39) -> 61718.06 | J35: =I35/$I$8 -> 39.5122023
A36: 01.04.01 | B36: TRANSP COMERC DO LOCAL DE ARMAZENAMENTO AO MUNICÍPIO DE INSTALAÇÃO EM RODOVIA PAVIMENTADA | C36: CPU0016 | D36: UNXKM | E36: 18.82 | F36: 29396.84 | G36: 1.18 | H36: =ROUND(G36+G36*$I$6,2) -> 1.48 | I36: =ROUND(ROUND(F36,2)*ROUND(H36,2),2) -> 43507.32
A37: 01.04.02 | B37: TRANSP COMERC COM CAMINHAO CARROCERIA 9 T, RODOVIA PAVIMENTADA , NO MUNICÍPIO DE INSTALAÇÃO | C37: CPU0017 | D37: UNXKM | E37: 0.69 | F37: 1077.78 | G37: 2.44 | H37: 3.06 | I37: 3298.01
A38: 01.04.03 | B38: TRANSP COMERC COM CAMINHAO CARROCERIA 9 T, RODOVIA EM LEITO NATURAL , NO MUNICÍPIO DE INSTALAÇÃO | C38: CPU0018 | D38: UNXKM | E38: 2.08 | F38: 3248.96 | G38: 3.66 | H38: 4.59 | I38: 14912.73
A40: 02 | B40: FORNECIMENTO DE MATERIAIS | I40: =SUBTOTAL(9,I41:I59) -> 12490821.19 | J40: =I40/$I$8 -> 7996.684501
A42: 02.01 | B42: MATERIAIS PARA INSTALAÇÃO DAS CISTERNAS | I42: =SUBTOTAL(9,I43:I44) -> 11639727.22 | J42: =I42/$I$8 -> 7451.81
A43: 02.01.01 | B43: CISTERNA DE POLIETILENO 16.000L, COM EXTRAVASOR ACOPLADO | C43: COTAÇÃO | D43: UN | E43: 1 | F43: 1562 | G43: 6720 | H43: =ROUND(G43+G43*$I$7,2) -> 7451.81 | I43: =ROUND(ROUND(F43,2)*ROUND(H43,2),2) -> 11639727.22
A45: 02.02 | B45: MATERIAIS PARA INSTALAÇÃO DAS CISTERNAS (SERVIÇOS COMPLEMENTARES) | I45: =SUBTOTAL(9,I46:I59) -> 851093.97 | J45: =I45/$I$8 -> 544.8745006
A46: 02.02.01 | B46: PLACA DE ALUMINIO ANODIZADO PARA NUMERAÇÃO DAS CISTERNAS | C46: COTAÇÃO | D46: UN | E46: 1 | F46: 1562 | G46: 2.25 | H46: =ROUND(G46+G46*$I$7,2) -> 2.5 | I46: =ROUND(ROUND(F46,2)*ROUND(H46,2),2) -> 3905
A47: 02.02.02 | B47: BOMBA DÁGUA DE MEMBRANA ANGULAR MANUAL, PRODUZIDA EM PLÁSTICO DE ENGENHARIA ATÓXICO, RESISTENTE A EXPOSIÇÃO PROLONGADA AO SOL. | C47: COTAÇÃO | D47: UN | E47: 1 | F47: 1562 | G47: 132.46 | H47: 146.88 | I47: 229426.56
A48: 02.02.03 | B48: CONJUNTO DE SUCÇÃO FLUTUANTE COM MANGUEIRA FLEXIVEL: BOIA 15CM COM ARGOLAS DE FIXAÇÃO, BRAÇADEIRA, CONECTOR ANGULAR PARA TUBOS, 2,5M MANGUEIRA 1" PVC COM REFORÇO SILICONE ESPIRALADA | C48: COTAÇÃO | D48: UN | E48: 1 | F48: 1562 | G48: 46.41 | H48: 51.46 | I48: 80380.52
A49: 02.02.04 | B49: FILTRO SEPARADOR DE FOLHAS E DETRITOS | C49: COTAÇÃO | D49: UN | E49: 0.95 | F49: 1483.9 | G49: 68.24 | H49: 75.67 | I49: 112286.71
A50: 02.02.05 | B50: GRELHA HEMISFÉRICA PVC FLEXÍVEL 88MM X 100 MM | C50: COTAÇÃO | D50: UN | E50: 0.1 | F50: 156.2 | G50: 24.15 | H50: 26.78 | I50: 4183.04
A51: 02.02.06 | B51: ABRAÇADEIRA TIPO U AÇO PERFILADO ZINCADO 4" | C51: COTAÇÃO | D51: UN | E51: 5 | F51: 7810 | G51: 2.5 | H51: 2.77 | I51: 21633.7
A52: 02.02.07 | B52: ARRUELA 3/16 ZINCADA | C52: COTAÇÃO | D52: UN | E52: 10 | F52: 15620 | G52: 0.07 | H52: 0.08 | I52: 1249.6
A53: 02.02.08 | B53: TUBO DE PVC PARA ESGOTO PREDIAL DN 100MM | C53: SINAPI INS - 9836 | D53: M | E53: 15 | F53: 23430 | G53: 9,26 | H53: 10.27 | I53: 240626.1
A54: 02.02.09 | B54: TÊ SANITÁRIO PVC PARA ESGOTO PREDIAL DN 100MM | C54: SINAPI INS - 7091 | D54: UN | E54: 2 | F54: 3124 | G54: 10,11 | H54: 11.21 | I54: 35020.04
A55: 02.02.10 | B55: JOELHO PVC SOLD. 90G PB P/ESGOTO PREDIAL DN 100MM | C55: SINAPI INS - 3520 | D55: UN | E55: 7 | F55: 10934 | G55: 5,26 | H55: 5.83 | I55: 63745.22
A56: 02.02.11 | B56: LUVA SIMPLES PVC P/ESG. PREDIAL DN 100MM | C56: SINAPI INS - 3899 | D56: UN | E56: 6 | F56: 9372 | G56: 4,01 | H56: 4.45 | I56: 41705.4
A57: 02.02.12 | B57: CAP PVC, SOLDAVEL, DN 100 MM, SERIE NORMAL, PARA ESGOTO PREDIAL | C57: SINAPI INS - 1200 | D57: UN | E57: 1 | F57: 1562 | G57: 5,72 | H57: 6.34 | I57: 9903.08
A58: 02.02.13 | B58: BUCHA DE NYLON SEM ABA S8, COM PARAFUSO DE 4,80 X 50 MM EM ACO ZINCADO COM ROSCA SOBERBA, CABECA CHATA E FENDA PHILLIPS | C58: SINAPI INS - 7583 | D58: UN | E58: 10 | F58: 15620 | G58: 0,41 | H58: 0.45 | I58: 7029
B60: VALOR TOTAL DA PLANILHA | I60: =SUBTOTAL(9,I12:I59) -> 14991750.25 | J60: =I60/$I$8 -> 9597.791453
B63: APAGAR ANTES DE ENVIAR PARA A LICITAÇÃO | G63: Valor total disponibilizado | I63: 15000000
G65: Valor p/ cisternas | I65: =I60 -> 14991750.25 | J65: 1562
G66: Valor p/ apoio (10%) | I66: =I63-I65 -> 8249.75 | J66: =I66/I63 -> 0.0005499833333
I67: =I66/I8 -> 5.28153009
G69: Valor cisterna + apoio | I69: =J60+I67 -> 9603.072983

Sheet B.D.I SERVIÇOS (SEM DES.)
A4: Ministério do Desenvolvimento Regional
A5: Companhia de Desenvolvimento do Vale do São Francisco e Parnaíba
A6: Codevasf/Sede
A8: DETALHAMENTO DO BDI - SERVIÇOS
C13: Item | D13: Descrição dos serviços | E13: Preço de Venda (%) | F13: Custo Direto (%)
C15: 1 | D15: Administração Central (A) | F15: 0.04
C17: 2 | D17: Impostos e Taxas (I) | F17: =E18+E19+E20+E21 -> 0.0865
C18: 2.1 | D18: ISS | E18: 0.05
C19: 2.2 | D19: PIS | E19: 0.0065
C20: 2.3 | D20: Cofins | E20: 0.03
C21: 2.4 | D21: CPRB (INSS) | E21: 0
C23: 3 | D23: Risco, seguro e garantia (R) | F23: =E24+E25+E26 -> 0.016
C24: 3.1 | D24: Risco | E24: 0.012
C25: 3.2 | D25: Seguro + garantia | E25: 0.004
C28: 4 | D28: Despesas Financeiras (DF) | F28: 0.0095
C30: 5 | D30: Lucro (L) | F30: 0.075
C32: BDI* (%): | F32: =ROUND(((((1+(F15+F23))*(1+F28)*(1+F30)/(1-F17))-1)*100),2) -> 25.45
B34: Considerações: | C34: Acórdão nº 2622/2013 - TCU /Plenário
C35: (*) BDI (%) = (((1+(AC+S+R+G))*(1+DF)*(1+L)/(1-I))-1)*100
C36: * Considerando a Lei nº 12.844/2013 e Acórdão 2293/2013-TCU -Plenário (Desoneração da Folha de Pagamento)

Sheet B.D.I MATERIAIS (SEM DES.)
A4: Ministério do Desenvolvimento Regional
A5: Companhia de Desenvolvimento do Vale do São Francisco e Parnaíba
A6: Codevasf/Sede
A8: DETALHAMENTO DO BDI - FORNECIMENTO DE MATERIAIS
C13: Item | D13: Descrição dos serviços | E13: Preço de Venda (%) | F13: Custo Direto (%)
C15: 1 | D15: Administração Central (A) | F15: 0.015
C17: 2 | D17: Impostos e Taxas (I) | F17: =E18+E19+E20+E21 -> 0.0365
C18: 2.1 | D18: ISS | E18: 0
C19: 2.2 | D19: PIS | E19: 0.0065
C20: 2.3 | D20: Cofins | E20: 0.03
C21: 2.4 | D21: CPRB (INSS) | E21: 0
C23: 3 | D23: Risco, seguro e garantia (R) | F23: =E24+E25+E26 -> 0.0086
C24: 3.1 | D24: Risco | E24: 0.0056
C25: 3.2 | D25: Seguro + garantia | E25: 0.003
C28: 4 | D28: Despesas Financeiras (DF) | F28: 0.0085
C30: 5 | D30: Lucro (L) | F30: 0.035
C32: BDI* (%): | F32: =ROUND(((((1+(F15+F23))*(1+F28)*(1+F30)/(1-F17))-1)*100),2) -> 10.89
B34: Considerações: | C34: Acórdão nº 2622/2013 - TCU /Plenário
C35: (*) BDI (%) = (((1+(AC+S+R+G))*(1+DF)*(1+L)/(1-I))-1)*100
C36: * Considerando a Lei nº 12.844/2013 e Acórdão 2293/2013-TCU -Plenário (Desoneração da Folha de Pagamento)

Sheet COMPOSIÇÕES
B1: MINISTÉRIO DO DESENVOLVIMENTO REGIONAL - MDR
B2: COMPANHIA DE DESENVOLVIMENTO DOS VALES DO SÃO FRANCISCO E DO PARNAÍBA
B3: ÁREA DE REVITALIZAÇÃO DAS BACIAS HIDROGRÁFICAS
A5: OBJETO: | B5: TRANSPORTE E INSTALAÇÃO DE CISTERNAS PARA CAPTAÇÃO DA ÁGUA DA CHUVA - ALAGOAS
A7: COMPOSICÕES DE CUSTOS UNITÁRIOS DE SERVICOS
A9: ITEM | B9: Fonte | C9: Código | D9: DESCRIÇÃO | E9: Unidade | F9: Quantidade | G9: Preço unitário | H9: Preço total
A11: 01.01.01 | C11: CPU0001 | D11: MOBILIZAÇÃO E DESMOBILIZAÇÃO DE PESSOAL E EQUIPAMENTOS | E11: UN
B12: Sinapi Serv | C12: 73467 | D12: CAMINHÃO TOCO. PBT 14.300 KG. CARGA ÚTIL MÁX. 9.710 KG. DIST. ENTRE EIXOS 3.56 M. POTÊNCIA 185 CV. INCLUSIVE CARROCERIA FIXA ABERTA DE MADEIRA P/ TRANSPORTE GERAL DE CARGA SECA. DIMEN. APROX. 2.50 X 6 | E12: CHP | F12: 68.845064 | G12: 93,00 | H12: =ROUND(F12*G12,2) -> 6402.59
B13: Sinapi Serv | C13: 88316 | D13: SERVENTE COM ENCARGOS COMPLEMENTARES | E13: H | F13: 68.845064 | G13: 14,30 | H13: =ROUND(F13*G13,2) -> 984.48
C14: 01.01.01 | D14: Custo Direto Total | H14: =SUBTOTAL(9,H12:H13) -> 7387.07
A16: 01.01.02 | C16: CPU0002 | D16: INSTALAÇÃO DE CANTEIRO DE OBRAS (LOCAÇÃO DE IMÓVEL) | E16: MÊS
B17: DNIT | C17: Tab. Cons. | D17: ALOJAMENTO/ESCRITÓRIO/ALMOXARIFADO | E17: MÊS | F17: 14 | G17: 1896.45 | H17: =ROUND(F17*G17,2) -> 26550.3
C18: 01.01.02 | D18: Custo Direto Total | H18: =SUBTOTAL(9,H17:H17) -> 26550.3
A20: 01.01.03 | C20: CPU0003 | D20: ADMINISTRAÇÃO LOCAL E MANUTENÇÃO DO CANTEIRO DE OBRAS | E20: MÊS
B21: Codevasf | C21: B3 | D21: VEÍCULO LEVE 1.3 - TABELA CODEVASF 7SR CÓD B3 | E21: MÊS | F21: 14 | G21: 3251.84 | H21: =ROUND(F21*G21,2) -> 45525.76
B22: Codevasf | C22: B11 | D22: PICK-UP CD 4X4 DIESEL - TABELA CODEVASF 7SR CÓD B11 | E22: MÊS | F22: 14 | G22: 6474.26 | H22: 90639.64
B23: Sinapi Serv | C23: 100319 | D23: ENGENHEIRO CIVIL JUNIOR COM ENCARGOS COMPLEMENTARES | E23: MES | F23: 7 | G23: 15.786,85 | H23: =ROUND(F23*G23,2) -> 110507.95
B24: Sinapi Serv | C24: 100321 | D24: TÉCNICO EM SEGURANÇA DO TRABALHO COM ENCARGOS COMPLEMENTARES | E24: MES | F24: 7 | G24: 3.672,50 | H24: 25707.5
B25: Sinapi Serv | C25: 93572 | D25: ENCARREGADO GERAL DE OBRAS COM ENCARGOS COMPLEMENTARES | E25: MES | F25: 14 | G25: 3.995,98 | H25: 55943.72
C26: 01.01.03 | D26: Custo Direto Total | H26: =SUBTOTAL(9,H21:H25) -> 328324.57
A28: 01.01.04 | C28: CPU0004 | D28: VEÍCULO PICK-UP CABINE DUPLA 4X4 (163 CV), COM AR-CONDICIONADO PARA APOIO À FISCALIZAÇÃO, INCLUINDO DESPESAS COM COMBUSTÍVEL, ÓLEOS, MANUTENÇÃO, LICENCIAMENTO, SEGUROS, IMPOSTOS, ETC. | E28: MÊS
B29: Codevasf | C29: B11 | D29: PICK-UP CD 4X4 DIESEL - TABELA CODEVASF 7SR CÓD B11 | E29: MÊS | F29: 1 | G29: 6474.26 | H29: =ROUND(F29*G29,2) -> 6474.26
C30: 01.01.04 | D30: Custo Direto Total | H30: =SUBTOTAL(9,H29) -> 6474.26
A32: 01.01.05 | C32: CPU0005 | D32: PLACA DE OBRA EM CHAPA DE ACO GALVANIZADO (15 PLACAS DE 12M2) | E32: M2
B33: Sinapi Ins | C33: 4417 | D33: SARRAFO DE MADEIRA NAO APARELHADA *2.5 X 7* CM. MACARANDUBA. ANGELIM OU EQUIVALENTE DA REGIAO | E33: M | F33: 1 | G33: 4,73 | H33: =ROUND(F33*G33,2) -> 4.73
B34: Sinapi Ins | C34: 4491 | D34: PONTALETE DE MADEIRA NAO APARELHADA *7.5 X 7.5* CM (3 X 3 ") PINUS. MISTA OU EQUIVALENTE DA REGIAO | E34: M | F34: 4 | G34: 6,39 | H34: 25.56
B35: Sinapi Ins | C35: 4813 | D35: PLACA DE OBRA (PARA CONSTRUCAO CIVIL) EM CHAPA GALVANIZADA *N. 22*. ADESIVADA. DE *2.0 X 1.125* M | E35: M2 | F35: 1 | G35: 300,00 | H35: 300
B36: Sinapi Ins | C36: 5075 | D36: PREGO DE ACO POLIDO COM CABECA 18 X 30 (2 3/4 X 10) | E36: KG | F36: 0.11 | G36: 12,29 | H36: 1.35
B37: Sinapi Serv | C37: 88262 | D37: CARPINTEIRO DE FORMAS COM ENCARGOS COMPLEMENTARES | E37: H | F37: 1 | G37: 18,18 | H37: =ROUND(F37*G37,2) -> 18.18
B38: Sinapi Serv | C38: 88316 | D38: SERVENTE COM ENCARGOS COMPLEMENTARES | E38: H | F38: 2 | G38: 14,30 | H38: 28.6
B39: Sinapi Serv | C39: 94962 | D39: CONCRETO MAGRO PARA LASTRO. TRAÇO 1:4.5:4.5 (CIMENTO/ AREIA MÉDIA/ BRITA 1) - PREPARO MECÂNICO COM BETONEIRA 400 L. AF_07/2016 | E39: M3 | F39: 0.01 | G39: 270,74 | H39: 2.71
C40: 01.01.05 | D40: Custo Direto Total | H40: =SUBTOTAL(9,H33:H39) -> 381.13
A42: 01.02.01 | C42: CPU0006 | D42: ESCAVAÇÃO MANUAL - ABERTURA DA CISTERNA - H=80CM | E42: M3
B43: Sinapi Serv | C43: 88316 | D43: SERVENTE COM ENCARGOS COMPLEMENTARES | E43: H | F43: 3 | G43: 14,30 | H43: =ROUND(F43*G43,2) -> 42.9
C44: 01.02.01 | D44: Custo Direto Total | H44: =SUBTOTAL(9,H43) -> 42.9
A46: 01.02.02 | C46: CPU0007 | D46: REGULARIZAÇÃO COM SOLO-CIMENTO TRAÇO 1:20, ESP=10CM | E46: M3
B47: Sinapi Ins | C47: 1379 | D47: CIMENTO PORTLAND COMPOSTO CP II-32 | E47: KG | F47: 130 | G47: 0,56 | H47: =ROUND(F47*G47,2) -> 72.8
B48: Sinapi Serv | C48: 88316 | D48: SERVENTE COM ENCARGOS COMPLEMENTARES | E48: H | F48: 0.094117 | G48: 14,30 | H48: =ROUND(F48*G48,2) -> 1.35
C49: 01.02.02 | D49: Custo Direto Total | H49: =SUBTOTAL(9,H47:H48) -> 74.15
A51: 01.02.03 | C51: CPU0008 | D51: REATERRO COMPACTADO LATERAL, CONFORME ESPECIFICADO EM PROJETO, COM APROVEITAMENTO DO MATERIAL ESCAVADO | E51: M3
B52: Sinapi Serv | C52: 88316 | D52: SERVENTE COM ENCARGOS COMPLEMENTARES | E52: H | F52: 1.5 | G52: 14,30 | H52: =ROUND(F52*G52,2) -> 21.45
C53: 01.02.03 | D53: Custo Direto Total | H53: =SUBTOTAL(9,H52) -> 21.45
A55: 01.02.04 | C55: CPU0009 | D55: ESCAVACAO E CARGA MATERIAL DE JAZIDA 1A CATEGORIA | E55: M3
B56: Sinapi Serv | C56: 5851 | D56: TRATOR DE ESTEIRAS. POTÊNCIA 150 HP. PESO OPERACIONAL 16.7 T. COM RODA MOTRIZ ELEVADA E LÂMINA 3.18 M3 - CHP DIURNO. AF_06/2014 | E56: CHP | F56: 0.0093458 | G56: 147,82 | H56: =ROUND(F56*G56,2) -> 1.38
B57: Sinapi Serv | C57: 5944 | D57: PÁ CARREGADEIRA SOBRE RODAS. POTÊNCIA 197 HP. CAPACIDADE DA CAÇAMBA 2.5 A 3.5 M3. PESO OPERACIONAL 18338 KG - CHP DIURNO. AF_06/2014 | E57: CHP | F57: 0.0054206 | G57: 125,15 | H57: 0.68
B58: Sinapi Serv | C58: 5946 | D58: PÁ CARREGADEIRA SOBRE RODAS. POTÊNCIA 197 HP. CAPACIDADE DA CAÇAMBA 2.5 A 3.5 M3. PESO OPERACIONAL 18338 KG - CHI DIURNO. AF_06/2014 | E58: CHI | F58: 0.0039252 | G58: 49,00 | H58: 0.19
B59: Sinapi Serv | C59: 88316 | D59: SERVENTE COM ENCARGOS COMPLEMENTARES | E59: H | F59: 0.0186916 | G59: 14,30 | H59: 0.27
C60: 01.02.04 | D60: Custo Direto Total | H60: =SUBTOTAL(9,H56:H59) -> 2.52
A62: 01.02.05 | C62: CPU0010 | D62: TRANSPORTE LOCAL MATERIAL DE JAZIDA DMT= 10KM - ROD. NÃO PAVIMENTADA | E62: M3XKM
B63: Sinapi Serv | C63: 67826 | D63: CAMINHÃO BASCULANTE 6 M3 TOCO. PESO BRUTO TOTAL 16.000 KG. CARGA ÚTIL MÁXIMA 11.130 KG. DISTÂNCIA ENTRE EIXOS 5.36 M. POTÊNCIA 185 CV. INCLUSIVE CAÇAMBA METÁLICA - CHP DIURNO. AF_06/2014 | E63: CHP | F63: 0.01111 | G63: 100,64 | H63: =ROUND(F63*G63,2) -> 1.12
B64: Sinapi Serv | C64: 67827 | D64: CAMINHÃO BASCULANTE 6 M3 TOCO. PESO BRUTO TOTAL 16.000 KG. CARGA ÚTIL MÁXIMA 11.130 KG. DISTÂNCIA ENTRE EIXOS 5.36 M. POTÊNCIA 185 CV. INCLUSIVE CAÇAMBA METÁLICA - CHI DIURNO. AF_06/2014 | E64: CHI | F64: 0.00278 | G64: 30,93 | H64: 0.09
C65: 01.02.05 | D65: Custo Direto Total | H65: =SUBTOTAL(9,H63:H64) -> 1.21
A67: 01.02.06 | C67: CPU0011 | D67: ESPALHAMENTO DO MATERIAL ESCAVADO NÃO UTILIZADO PARA ATERRO | E67: M3
B68: Sinapi Serv | C68: 88316 | D68: SERVENTE COM ENCARGOS COMPLEMENTARES | E68: H | F68: 0.033333 | G68: 14,30 | H68: =ROUND(F68*G68,2) -> 0.48
C69: 01.02.06 | D69: Custo Direto Total | H69: =SUBTOTAL(9,H68) -> 0.48
A71: 01.03.01 | C71: CPU0012 | D71: ASSENTAMENTO DE TUBOS E CONEXÕES | E71: M
B72: Sinapi Serv | C72: 88267 | D72: ENCANADOR OU BOMBEIRO HIDRÁULICO COM ENCARGOS COMPLEMENTARES | E72: H | F72: 0.1074 | G72: 21,66 | H72: =ROUND(F72*G72,2) -> 2.33
B73: Sinapi Serv | C73: 88316 | D73: SERVENTE COM ENCARGOS COMPLEMENTARES | E73: H | F73: 0.1074 | G73: 14,30 | H73: 1.54
C74: 01.03.01 | D74: Custo Direto Total | H74: =SUBTOTAL(9,H72:H73) -> 3.87
A76: 01.03.02 | C76: CPU0013 | D76: CALHA EM CHAPA DE AÇO GALVANIZADO NÚMERO 26. DESENVOLVIMENTO DE 30 CM. INCLUSO TRANSPORTE VERTICAL. (SINAPI 94227 ADAPTADA) | E76: M
B77: Sinapi Ins | C77: 1109 | D77: CALHA QUADRADA DE CHAPA DE ACO GALVANIZADA NUM 26, CORTE 30 CM (SINAPI INS 1109 ADAPTADO) | E77: M | F77: 1.05 | G77: 16.58181818 | H77: =ROUND(F77*G77,2) -> 17.41
B78: Sinapi Ins | C78: 142 | D78: SELANTE ELASTICO MONOCOMPONENTE A BASE DE POLIURETANO (PU) PARA JUNTAS DIVERSAS | E78: 310ML | F78: 0.007 | G78: 27.91 | H78: =ROUND(F78*G78,2) -> 0.2
B79: Sinapi Ins | C79: 5104 | D79: REBITE DE ALUMINIO VAZADO DE REPUXO. 3.2 X 8 MM (1KG = 1025 UNIDADES) | E79: KG | F79: 0.003 | G79: 49.45 | H79: 0.15
B80: Sinapi Serv | C80: 88316 | D80: SERVENTE COM ENCARGOS COMPLEMENTARES | E80: H | F80: 0.282 | G80: 14,30 | H80: =ROUND(F80*G80,2) -> 4.03
B81: Sinapi Serv | C81: 88323 | D81: TELHADISTA COM ENCARGOS COMPLEMENTARES | E81: H | F81: 0.188 | G81: 22,19 | H81: 4.17
C82: 01.03.02 | D82: Custo Direto Total | H82: =SUBTOTAL(9,H77:H81) -> 25.96
A84: 01.03.03 | C84: CPU0014 | D84: INSTALAÇÃO DA BOMBA MANUAL | E84: UN
B85: Sinapi Ins | C85: 4332 | D85: PARAFUSO ZINCADO, SEXTAVADO, COM ROSCA INTEIRA, DIAMETRO 3/8", COMPRIMENTO 2" | E85: un | F85: 4 | G85: 0.66 | H85: =ROUND(F85*G85,2) -> 2.64
B86: Sinapi Ins | C86: 4337 | D86: PORCA ZINCADA, QUADRADA, DIAMETRO 5/8" | E86: un | F86: 4 | G86: 1.54 | H86: 6.16
B87: Sinapi Serv | C87: 88316 | D87: SERVENTE COM ENCARGOS COMPLEMENTARES | E87: H | F87: 0.7 | G87: 14,30 | H87: =ROUND(F87*G87,2) -> 10.01
C88: 01.03.03 | D88: Custo Direto Total | H88: =SUBTOTAL(9,H85:H87) -> 18.81
A90: 01.03.04 | C90: CPU0015 | D90: BLOCO DE ANCORAGEM 25 X 30 X 25CM | E90: UN
B91: Composição | C91: CPU0019 | D91: ARMAÇÃO UTILIZANDO AÇO CA-60 DE 5.0 MM - MONTAGEM. | E91: KG | F91: 0.968968 | G91: 7.85 | H91: =ROUND(F91*G91,2) -> 7.61
B92: Sinapi Serv | C92: 88309 | D92: PEDREIRO COM ENCARGOS COMPLEMENTARES | E92: H | F92: 0.1 | G92: 18,31 | H92: 1.83
B93: Sinapi Serv | C93: 88316 | D93: SERVENTE COM ENCARGOS COMPLEMENTARES | E93: H | F93: 0.15 | G93: 14,30 | H93: 2.15
B94: Sinapi Serv | C94: 94975 | D94: CONCRETO FCK = 15MPA. TRAÇO 1:3.4:3.5 (CIMENTO/ AREIA MÉDIA/ BRITA 1) - PREPARO MANUAL. AF_07/2016 | E94: M3 | F94: 0.018465 | G94: 394,30 | H94: 7.28
B95: Sinapi Serv | C95: 97086 | D95: FABRICAÇÃO. MONTAGEM E DESMONTAGEM DE FORMA PARA RADIER. EM MADEIRA SERRADA. 4 UTILIZAÇÕES. AF_09/2017 | E95: M2 | F95: 0.073333 | G95: 81,61 | H95: 5.98
C96: 01.03.04 | D96: Custo Direto Total | H96: =SUBTOTAL(9,H91:H95) -> 24.85
C98: CPU0019 | D98: ARMAÇÃO UTILIZANDO AÇO CA-60 DE 5.0 MM - MONTAGEM. | E98: KG | F98: 31/01/2020
B99: Sinapi Ins | C99: 39017 | D99: ESPACADOR / DISTANCIADOR CIRCULAR COM ENTRADA LATERAL. EM PLASTICO. PARA VERGALHAO *4.2 A 12.5* MM. COBRIMENTO 20 MM | E99: UN | F99: 0.97 | G99: 0.13 | H99: =ROUND(F99*G99,2) -> 0.13
B100: Sinapi Ins | C100: 43059 | D100: ACO CA-60. 4.2 MM. OU 5.0 MM. OU 6.0 MM. OU 7.0 MM. VERGALHAO | E100: KG | F100: 1 | G100: 5.5 | H100: 5.5
B101: Sinapi Ins | C101: 43132 | D101: ARAME RECOZIDO 16 BWG. D = 1.60 MM (0.016 KG/M) OU 18 BWG. D = 1.25 MM (0.01 KG/M) | E101: KG | F101: 0.025 | G101: 10.75 | H101: 0.27
B102: Sinapi Serv | C102: 88238 | D102: AJUDANTE DE ARMADOR COM ENCARGOS COMPLEMENTARES | E102: H | F102: 0.0155 | G102: 13,88 | H102: 0.22
B103: Sinapi Serv | C103: 88245 | D103: ARMADOR COM ENCARGOS COMPLEMENTARES | E103: H | F103: 0.0947 | G103: 18,22 | H103: 1.73
D104: Custo Direto Total | H104: =SUBTOTAL(9,H99:H103) -> 7.85
A106: 01.04.01 | C106: CPU0016 | D106: TRANSP COMERC DO LOCAL DE ARMAZENAMENTO AO MUNICÍPIO DE INSTALAÇÃO EM RODOVIA PAVIMENTADA | E106: UNXKM
B107: Sinapi Serv | C107: 88316 | D107: SERVENTE COM ENCARGOS COMPLEMENTARES | E107: H | F107: 0.008032128514 | G107: 14,30 | H107: =ROUND(F107*G107,2) -> 0.11
B108: Sinapi Serv | C108: 91031 | D108: CAMINHÃO TRUCADO (C/ TERCEIRO EIXO) ELETRÔNICO - POTÊNCIA 231CV - PBT = 22000KG - DIST. ENTRE EIXOS 5170 MM - INCLUI CARROCERIA FIXA ABERTA DE MADEIRA - CHP DIURNO. AF_06/2015 | E108: CHP | F108: 0.008032128514 | G108: 133,74 | H108: 1.07
C109: 01.04.01 | D109: Custo Direto Total | H109: =SUBTOTAL(9,H107:H108) -> 1.18
A111: 01.04.02 | C111: CPU0017 | D111: TRANSP COMERC COM CAMINHAO CARROCERIA 9 T, RODOVIA PAVIMENTADA, NO MUNICÍPIO DE INSTALAÇÃO | E111: UNXKM
B112: Sinapi Serv | C112: 73467 | D112: CAMINHÃO TOCO. PBT 14.300 KG. CARGA ÚTIL MÁX. 9.710 KG. DIST. ENTRE EIXOS 3.56 M. POTÊNCIA 185 CV. INCLUSIVE CARROCERIA FIXA ABERTA DE MADEIRA P/ TRANSPORTE GERAL DE CARGA SECA. DIMEN. APROX. 2.50 X 6 | E112: CHP | F112: 0.02008032129 | G112: 93,00 | H112: =ROUND(F112*G112,2) -> 1.87
B113: Sinapi Serv | C113: 88316 | D113: SERVENTE COM ENCARGOS COMPLEMENTARES | E113: H | F113: 0.04016064257 | G113: 14,30 | H113: 0.57
C114: 01.04.02 | D114: Custo Direto Total | H114: =SUBTOTAL(9,H112:H113) -> 2.44
A116: 01.04.03 | C116: CPU0018 | D116: TRANSP COMERC COM CAMINHAO CARROCERIA 9 T, RODOVIA EM LEITO NATURAL, NO MUNICÍPIO DE INSTALAÇÃO | E116: UNXKM
B117: Sinapi Serv | C117: 73467 | D117: CAMINHÃO TOCO. PBT 14.300 KG. CARGA ÚTIL MÁX. 9.710 KG. DIST. ENTRE EIXOS 3.56 M. POTÊNCIA 185 CV. INCLUSIVE CARROCERIA FIXA ABERTA DE MADEIRA P/ TRANSPORTE GERAL DE CARGA SECA. DIMEN. APROX. 2.50 X 6 | E117: CHP | F117: 0.03012048193 | G117: 93,00 | H117: =ROUND(F117*G117,2) -> 2.8
B118: Sinapi Serv | C118: 88316 | D118: SERVENTE COM ENCARGOS COMPLEMENTARES | E118: H | F118: 0.06024096386 | G118: 14,30 | H118: 0.86
C119: 01.04.03 | D119: Custo Direto Total | H119: =SUBTOTAL(9,H117:H118) -> 3.66

Sheet Cronograma Físico-Financeiro
C1: MINISTÉRIO DO DESENVOLVIMENTO REGIONAL - MDR
C2: COMPANHIA DE DESENVOLVIMENTO DOS VALES DO SÃO FRANCISCO E DO PARNAÍBA
C3: ÁREA DE REVITALIZAÇÃO DAS BACIAS HIDROGRÁFICAS
A6: OBJETO: | B6: TRANSPORTE E INSTALAÇÃO DE CISTERNAS PARA CAPTAÇÃO DA ÁGUA DA CHUVA - ALAGOAS
A8: CRONOGRAMA FÍSICO-FINANCEIRO
A10: ITEM | B10: ESPECIFICAÇÃO DOS SERVIÇOS | C10: VALOR TOTAL (R$) | D10: Mês 01 | E10: Mês 02 | F10: Mês 03 | G10: Mês 04 | H10: Mês 05 | I10: Mês 06 | J10: Mês 07 | K10: Total
A11: 01.01 | B11: ='CISTERNAS ALAGOAS'!B14 -> SERVIÇOS PRELIMINAES E CANTEIRO DE OBRAS | C11: ='CISTERNAS ALAGOAS'!I14 -> 542294.14 | D11: =('CISTERNAS ALAGOAS'!I15+'CISTERNAS ALAGOAS'!I16+'CISTERNAS ALAGOAS'!I17+'CISTERNAS ALAGOAS'!I18)/7+'CISTERNAS ALAGOAS'!I19 -> 104027.2943 | E11: =('CISTERNAS ALAGOAS'!I15+'CISTERNAS ALAGOAS'!I16+'CISTERNAS ALAGOAS'!I17+'CISTERNAS ALAGOAS'!I18)/7 -> 73044.47429 | F11: =E11 -> 73044.47429 | G11: =F11 -> 73044.47429 | H11: 73044.47429 | I11: 73044.47429 | J11: =C11-SUM(D11:I11) -> 73044.47429 | K11: =SUM(D11:J11) -> 542294.14
A12: 01.02 | B12: ='CISTERNAS ALAGOAS'!B21 -> INSTALAÇÃO DAS CISTERNAS | C12: ='CISTERNAS ALAGOAS'!I21 -> 883741.18 | D12: =C12/6/2 -> 73645.09833 | E12: =C12/6 -> 147290.1967 | F12: =E12 -> 147290.1967 | G12: =F12 -> 147290.1967 | H12: 147290.1967 | I12: 147290.1967 | J12: =C12-SUM(D12:I12) -> 73645.09833 | K12: =SUM(D12:J12) -> 883741.18
A13: 01.03 | B13: ='CISTERNAS ALAGOAS'!B29 -> SERVIÇOS COMPLEMENTARES | C13: ='CISTERNAS ALAGOAS'!I29 -> 1013175.68 | D13: =C13/6/2 -> 84431.30667 | E13: =C13/6 -> 168862.6133 | F13: =E13 -> 168862.6133 | G13: =F13 -> 168862.6133 | H13: =G13 -> 168862.6133 | I13: =H13 -> 168862.6133 | J13: =C13-SUM(D13:I13) -> 84431.30667 | K13: 1013175.68
A14: 01.04 | B14: ='CISTERNAS ALAGOAS'!B35 -> TRANSPORTE DAS CISTERNAS | C14: ='CISTERNAS ALAGOAS'!I35 -> 61718.06 | D14: 5143.171667 | E14: 10286.34333 | F14: 10286.34333 | G14: 10286.34333 | H14: 10286.34333 | I14: 10286.34333 | J14: 5143.171667 | K14: 61718.06
A15: 02.01 | B15: ='CISTERNAS ALAGOAS'!B42 -> MATERIAIS PARA INSTALAÇÃO DAS CISTERNAS | C15: ='CISTERNAS ALAGOAS'!I42 -> 11639727.22 | D15: 969977.2683 | E15: 1939954.537 | F15: 1939954.537 | G15: 1939954.537 | H15: 1939954.537 | I15: 1939954.537 | J15: 969977.2683 | K15: 11639727.22
A16: 02.02 | B16: ='CISTERNAS ALAGOAS'!B45 -> MATERIAIS PARA INSTALAÇÃO DAS CISTERNAS (SERVIÇOS COMPLEMENTARES) | C16: ='CISTERNAS ALAGOAS'!I45 -> 851093.97 | D16: 70924.4975 | E16: 141848.995 | F16: 141848.995 | G16: 141848.995 | H16: 141848.995 | I16: 141848.995 | J16: 70924.4975 | K16: 851093.97
B17: VALOR TOTAL DA PLANILHA | C17: =SUM(C11:C16) -> 14991750.25 | D17: =SUM(D11:D16) -> 1308148.637 | E17: =SUM(E11:E16) -> 2481287.159 | F17: 2481287.159 | G17: 2481287.159 | H17: 2481287.159 | I17: 2481287.159 | J17: 1277165.817 | K17: =SUM(D17:J17) -> 14991750.25
B18: PERCENTUAL EXECUTADO | C18: =C17/C17 -> 1 | D18: =D17/$C$17 -> 0.08725789951 | E18: =E17/$C$17 -> 0.1655101718 | F18: 0.1655101718 | G18: 0.1655101718 | H18: 0.1655101718 | I18: 0.1655101718 | J18: 0.08519124155 | K18: =SUM(D18:J18) -> 1
